Workbook

Sheet LevelbattleConfig
A1: ID | C1: Group | D1: awardDrop | E1: awardNum | F1: combatTime | G1: combatType | H1: MonsterGroupTruePower | I1: MonsterGroupPower
A2: int | C2: int[] | D2: int[] | E2: int[] | F2: float | G2: int | H2: int | I2: int
A4: 战斗组ID | B4: 使用位置 | C4: 包含的组ID （就是第二页的ID) | D4: 奖励随机掉落组 | E4: 奖励道具数量 | F4: 用时(秒） | G4: 玩法类型 1.正常 2.追逐 3.站桩 4.保卫水晶 5.至少完成x波 （406260） 6.至少坚持x秒 （406261） | H4: 怪物战斗组修为（实际） | I4: 怪物战斗组修为（表现） | J4: 评分修正 例如3人参战填75% | L4: 怪物等级上浮
A5: 100001 | B5: 主线1-1 | C5: =A5 -> 100001 | D5: -1 | E5: -1 | F5: 120 | G5: 1 | H5: 100 | I5: 100 | K5: 1-1
A6: 100002 | B6: 主线1-1 | C6: =A6 -> 100002 | D6: -1 | E6: -1 | F6: 120 | G6: 1 | H6: 100 | I6: 100 | K6: 1-1
A7: 100003 | B7: 主线1-1 | C7: =A7 -> 100003 | D7: -1 | E7: -1 | F7: 120 | G7: 1 | H7: 100 | I7: 100 | K7: 1-1 | L7: 1
A8: 100004 | B8: boss | C8: =A8 -> 100004 | D8: -1 | E8: -1 | F8: 120 | G8: 1 | H8: 100 | I8: 100 | K8: 1-1 | L8: 1
A11: 1002 | B11: =_xlfn.TEXTJOIN("-",1,M11:N11) -> 主线-击败结界兽 | C11: 1002 | D11: -1 | E11: -1 | F11: 120 | G11: 1 | H11: 100 | I11: 100 | M11: 主线 | N11: 击败结界兽
A12: =A11+1 -> 1003 | B12: 主线-击败痴道人 | C12: 1003 | D12: -1 | E12: -1 | F12: 120 | G12: 1 | H12: 100 | I12: 100 | M12: 主线 | N12: 击败痴道人
A13: 1004 | B13: 主线-10. 北海深处.妖兽横行 | C13: 1004 | D13: -1 | E13: -1 | F13: 120 | G13: 1 | H13: 100 | I13: 100 | M13: 主线 | N13: 10. 北海深处.妖兽横行
A14: 1005 | B14: 主线-击败后山小妖 | C14: 1005 | D14: -1 | E14: -1 | F14: 120 | G14: 1 | H14: 100 | I14: 100 | M14: 主线 | N14: 击败后山小妖
A15: 1006 | B15: 主线-击败夜袭的妖兽 | C15: 1006 | D15: -1 | E15: -1 | F15: 120 | G15: 1 | H15: 100 | I15: 100 | M15: 主线 | N15: 击败夜袭的妖兽
A16: 1007 | B16: 主线-击败峰顶的妖王 | C16: 1007 | D16: -1 | E16: -1 | F16: 120 | G16: 1 | H16: 100 | I16: 100 | M16: 主线 | N16: 击败峰顶的妖王
A17: 1008 | B17: 主线-击败仙山的阵眼妖兽 | C17: 1008 | D17: -1 | E17: -1 | F17: 120 | G17: 1 | H17: 100 | I17: 100 | M17: 主线 | N17: 击败仙山的阵眼妖兽
A18: 1009 | B18: 主线-击杀灵兽获得天肥 | C18: 1009 | D18: -1 | E18: -1 | F18: 120 | G18: 1 | H18: 100 | I18: 100 | M18: 主线 | N18: 击杀灵兽获得天肥
A19: 1010 | B19: =_xlfn.TEXTJOIN("-",1,M19:N19) -> 主线-击败小麻雀的幻影 | C19: =A19 -> 1010 | D19: -1 | E19: -1 | F19: 120 | G19: 1 | H19: 100 | I19: 100 | M19: 主线 | N19: 击败小麻雀的幻影
A20: =A19+1 -> 1011 | B20: =_xlfn.TEXTJOIN("-",1,M20:N20) -> 主线-击败痴道人的幻影 | C20: =A20 -> 1011 | D20: -1 | E20: -1 | F20: 120 | G20: 1 | H20: 100 | I20: 100 | M20: 主线 | N20: 击败痴道人的幻影
A21: =A20+1 -> 1012 | B21: =_xlfn.TEXTJOIN("-",1,M21:N21) -> 主线-樗木之灵的幻影 | C21: =A21 -> 1012 | D21: -1 | E21: -1 | F21: 120 | G21: 1 | H21: 100 | I21: 100 | M21: 主线 | N21: 樗木之灵的幻影
A22: =A21+1 -> 1013 | B22: =_xlfn.TEXTJOIN("-",1,M22:N22) -> 主线-击败心魔 | C22: =A22 -> 1013 | D22: -1 | E22: -1 | F22: 120 | G22: 1 | H22: 100 | I22: 100 | M22: 主线 | N22: 击败心魔
A24: 2001 | B24: 命运峰-第1层 | C24: =A24 -> 2001 | D24: -1 | E24: -1 | F24: 120 | G24: 1 | H24: 100 | I24: 100
A25: 2002 | B25: 命运峰-第2层 | C25: =A25 -> 2002 | D25: -1 | E25: -1 | F25: 120 | G25: 1 | H25: 100 | I25: 100
A26: 2003 | B26: 命运峰-第3层 | C26: 2003 | D26: -1 | E26: -1 | F26: 120 | G26: 1 | H26: 100 | I26: 100
A27: 2004 | B27: 命运峰-第4层 | C27: 2004 | D27: -1 | E27: -1 | F27: 120 | G27: 1 | H27: 100 | I27: 100
A28: 2005 | B28: 命运峰-第5层 | C28: 2005 | D28: -1 | E28: -1 | F28: 120 | G28: 1 | H28: 100 | I28: 100
A29: 2006 | B29: 命运峰-第6层 | C29: 2006 | D29: -1 | E29: -1 | F29: 120 | G29: 1 | H29: 100 | I29: 100
A30: 2007 | B30: 命运峰-第7层 | C30: 2007 | D30: -1 | E30: -1 | F30: 120 | G30: 1 | H30: 100 | I30: 100
A31: 2008 | B31: 命运峰-第8层 | C31: 2008 | D31: -1 | E31: -1 | F31: 120 | G31: 1 | H31: 100 | I31: 100
A32: 2009 | B32: 命运峰-第9层 | C32: 2009 | D32: -1 | E32: -1 | F32: 120 | G32: 1 | H32: 100 | I32: 100
A33: 2010 | B33: 命运峰-第10层 | C33: 2010 | D33: -1 | E33: -1 | F33: 120 | G33: 1 | H33: 100 | I33: 100
A34: 2011 | B34: 命运峰-第11层 | C34: 2011 | D34: -1 | E34: -1 | F34: 120 | G34: 1 | H34: 100 | I34: 100
A35: 2012 | B35: 命运峰-第12层 | C35: 2012 | D35: -1 | E35: -1 | F35: 120 | G35: 1 | H35: 100 | I35: 100
A36: 2013 | B36: 命运峰-第13层 | C36: 2013 | D36: -1 | E36: -1 | F36: 120 | G36: 1 | H36: 100 | I36: 100
A37: 2014 | B37: 命运峰-第14层 | C37: 2014 | D37: -1 | E37: -1 | F37: 120 | G37: 1 | H37: 100 | I37: 100
A38: 2015 | B38: 命运峰-第15层 | C38: 2015 | D38: -1 | E38: -1 | F38: 120 | G38: 1 | H38: 100 | I38: 100
A39: 2016 | B39: 命运峰-第16层 | C39: 2016 | D39: -1 | E39: -1 | F39: 120 | G39: 1 | H39: 100 | I39: 100
A40: 2017 | B40: 命运峰-第17层 | C40: 2017 | D40: -1 | E40: -1 | F40: 120 | G40: 1 | H40: 100 | I40: 100
A41: 2018 | B41: 命运峰-第18层 | C41: 2018 | D41: -1 | E41: -1 | F41: 120 | G41: 1 | H41: 100 | I41: 100
A42: 2019 | B42: 命运峰-第19层 | C42: 2019 | D42: -1 | E42: -1 | F42: 120 | G42: 1 | H42: 100 | I42: 100
A43: 2020 | B43: 命运峰-第20层 | C43: 2020 | D43: -1 | E43: -1 | F43: 120 | G43: 1 | H43: 100 | I43: 100
A46: 101 | B46: 31

Sheet GroupConfig
A1: ID | C1: GroupMonsterLevel | D1: GroupMonster | E1: qiangDu | F1: levelAdd
A2: int | C2: int[] | D2: int[] | E2: int[] | F2: int[]
A4: 组ID | B4: 常用阵容ID | C4: 具体怪物等级 -1代表跟随玩家等级 -1后面可填动态修正等级 | D4: 每组具体怪 | E4: 每个怪的比例强度 一个都不填就是默认强度 | F4: 等级额外添加值 | G4: 模拟总强度，仅供参考 100是和玩家强度相当 | H4: 怪物1 | I4: 怪物2 | J4: 怪物3 | K4: 怪物4 | L4: 怪物5 | M4: 怪物6 | N4: 总强度 | O4: 怪物1强度占比 | P4: 怪物2强度占比 | Q4: 怪物3强度占比 | R4: 怪物4强度占比 | S4: 怪物5强度占比 | T4: 怪物6强度占比 | U4: 怪物1等级降低 | V4: 怪物2等级降低 | W4: 怪物3等级降低 | X4: 怪物4等级降低 | Y4: 怪物5等级降低 | Z4: 怪物6等级降低
A5: 100001 | B5: 100001 | C5: -1 | D5: =_xlfn.TEXTJOIN(";",1,H5:M5) -> 5001;1002 | E5: =_xlfn.TEXTJOIN(";",1,O5:T5) -> 80;40 | F5: =_xlfn.TEXTJOIN(";",1,U5:Z5) -> 0;-2 | G5: =SUM(IF(H5<>"",IF(O5<>"",O5,100),0),IF(I5<>"",IF(P5<>"",P5,100),0),IF(J5<>"",IF(Q5<>"",Q5,100),0),IF(K5<>"",IF(R5<>"",R5,100),0),IF(L5<>"",IF(S5<>"",S5,100),0),IF(M5<>"",IF(T5<>"",T5,100),0)) -> 120 | H5: 5001 | I5: 1002 | N5: =SUM(O5:T5) -> 120 | O5: 80 | P5: 40 | U5: 0 | V5: -2
A6: 100002 | B6: 100002 | C6: -1 | D6: =_xlfn.TEXTJOIN(";",1,H6:M6) -> 1002 | E6: =_xlfn.TEXTJOIN(";",1,O6:T6) ->  | G6: =SUM(IF(H6<>"",IF(O6<>"",O6,100),0),IF(I6<>"",IF(P6<>"",P6,100),0),IF(J6<>"",IF(Q6<>"",Q6,100),0),IF(K6<>"",IF(R6<>"",R6,100),0),IF(L6<>"",IF(S6<>"",S6,100),0),IF(M6<>"",IF(T6<>"",T6,100),0)) -> 100 | H6: 1002 | N6: =SUM(O6:T6) -> 0
A7: 100003 | B7: 100003 | C7: -1 | D7: 1003 | G7: 100 | H7: 1003 | N7: 0
A8: 100004 | B8: 100004 | C8: -1 | D8: =_xlfn.TEXTJOIN(";",1,H8:M8) -> 1004 | G8: 100 | H8: 1004 | N8: 0 | AD8: 等模型来了再配置
A9: 100005 | B9: 100005 | C9: -1 | D9: 1005 | G9: 100 | H9: 1005 | N9: 0 | AD9: 9002
A10: 100006 | B10: 100006 | C10: -1 | D10: 1002 | G10: 100 | H10: 1002 | N10: 0 | AD10: 9001
A11: 100007 | B11: 100007 | C11: -1 | D11: 1003 | G11: 100 | H11: 1003 | N11: 0 | AD11: 9003
A12: 100008 | B12: 100008 | C12: -1 | D12: 1004 | G12: 100 | H12: 1004 | N12: 0 | AD12: 1001 | AE12: 1002
A13: 100009 | B13: 100009 | C13: -1 | D13: 1005 | G13: 100 | H13: 1005 | N13: 0 | AD13: 5006
G14: 0 | N14: 0 | AD14: 5007
A15: 1002 | B15: =LevelbattleConfig!B11 -> 主线-击败结界兽 | C15: 5 | D15: 5001 | G15: 100 | H15: 5001 | N15: 0 | AD15: 9006
A16: =A15+1 -> 1003 | B16: =LevelbattleConfig!B12 -> 主线-击败痴道人 | C16: 15 | D16: 5002 | G16: 100 | H16: 5002 | N16: 0 | AD16: 9004
A17: =A16+1 -> 1004 | B17: =LevelbattleConfig!B13 -> 主线-10. 北海深处.妖兽横行 | C17: 25 | D17: 5003 | G17: 100 | H17: 5003 | N17: 0
A18: 1005 | B18: =LevelbattleConfig!B14 -> 主线-击败后山小妖 | C18: 42 | D18: 5004 | G18: 100 | H18: 5004 | N18: 0
A19: 1006 | B19: =LevelbattleConfig!B15 -> 主线-击败夜袭的妖兽 | C19: 48 | D19: 5005 | G19: 100 | H19: 5005 | N19: 0
A20: 1007 | B20: =LevelbattleConfig!B16 -> 主线-击败峰顶的妖王 | C20: 55 | D20: 5006 | G20: 100 | H20: 5006 | N20: 0
A21: 1008 | B21: =LevelbattleConfig!B17 -> 主线-击败仙山的阵眼妖兽 | C21: 85 | D21: 5007 | G21: 100 | H21: 5007 | N21: 0
A22: 1009 | B22: =LevelbattleConfig!B18 -> 主线-击杀灵兽获得天肥 | C22: 95 | D22: 5007 | G22: 100 | H22: 5007 | N22: 0
A23: 1010 | B23: =LevelbattleConfig!B19 -> 主线-击败小麻雀的幻影 | C23: 105 | D23: =_xlfn.TEXTJOIN(";",1,H23:M23) -> 5007 | E23: =_xlfn.TEXTJOIN(";",1,O23:T23) ->  | G23: =SUM(IF(H23<>"",IF(O23<>"",O23,100),0),IF(I23<>"",IF(P23<>"",P23,100),0),IF(J23<>"",IF(Q23<>"",Q23,100),0),IF(K23<>"",IF(R23<>"",R23,100),0),IF(L23<>"",IF(S23<>"",S23,100),0),IF(M23<>"",IF(T23<>"",T23,100),0)) -> 100 | H23: 5007 | N23: =SUM(O23:T23) -> 0
A24: =A23+1 -> 1011 | B24: =LevelbattleConfig!B20 -> 主线-击败痴道人的幻影 | C24: 105 | D24: =_xlfn.TEXTJOIN(";",1,H24:M24) -> 5007 | E24: =_xlfn.TEXTJOIN(";",1,O24:T24) ->  | G24: =SUM(IF(H24<>"",IF(O24<>"",O24,100),0),IF(I24<>"",IF(P24<>"",P24,100),0),IF(J24<>"",IF(Q24<>"",Q24,100),0),IF(K24<>"",IF(R24<>"",R24,100),0),IF(L24<>"",IF(S24<>"",S24,100),0),IF(M24<>"",IF(T24<>"",T24,100),0)) -> 100 | H24: 5007 | N24: =SUM(O24:T24) -> 0
A25: 1012 | B25: =LevelbattleConfig!B21 -> 主线-樗木之灵的幻影 | C25: 105 | D25: =_xlfn.TEXTJOIN(";",1,H25:M25) -> 5007 | E25: =_xlfn.TEXTJOIN(";",1,O25:T25) ->  | G25: =SUM(IF(H25<>"",IF(O25<>"",O25,100),0),IF(I25<>"",IF(P25<>"",P25,100),0),IF(J25<>"",IF(Q25<>"",Q25,100),0),IF(K25<>"",IF(R25<>"",R25,100),0),IF(L25<>"",IF(S25<>"",S25,100),0),IF(M25<>"",IF(T25<>"",T25,100),0)) -> 100 | H25: 5007 | N25: =SUM(O25:T25) -> 0
A26: 1013 | B26: =LevelbattleConfig!B22 -> 主线-击败心魔 | C26: 105 | D26: =_xlfn.TEXTJOIN(";",1,H26:M26) -> 5007 | E26: =_xlfn.TEXTJOIN(";",1,O26:T26) ->  | G26: =SUM(IF(H26<>"",IF(O26<>"",O26,100),0),IF(I26<>"",IF(P26<>"",P26,100),0),IF(J26<>"",IF(Q26<>"",Q26,100),0),IF(K26<>"",IF(R26<>"",R26,100),0),IF(L26<>"",IF(S26<>"",S26,100),0),IF(M26<>"",IF(T26<>"",T26,100),0)) -> 100 | H26: 5007 | N26: =SUM(O26:T26) -> 0
A28: 2001 | B28: 命运峰-第1层 | C28: 40;40 | D28: =_xlfn.TEXTJOIN(";",1,H28:M28) -> 5001;1001 | E28: =_xlfn.TEXTJOIN(";",1,O28:T28) -> 70;30 | G28: =SUM(IF(H28<>"",IF(O28<>"",O28,100),0),IF(I28<>"",IF(P28<>"",P28,100),0),IF(J28<>"",IF(Q28<>"",Q28,100),0),IF(K28<>"",IF(R28<>"",R28,100),0),IF(L28<>"",IF(S28<>"",S28,100),0),IF(M28<>"",IF(T28<>"",T28,100),0)) -> 100 | H28: 5001 | I28: 1001 | N28: =SUM(O28:T28) -> 100 | O28: 70 | P28: 30 | U28: 70 | V28: 30
A29: 2002 | B29: 命运峰-第2层 | C29: 50;50 | D29: =_xlfn.TEXTJOIN(";",1,H29:M29) -> 5002;1002 | E29: =_xlfn.TEXTJOIN(";",1,O29:T29) -> 70;30 | G29: =SUM(IF(H29<>"",IF(O29<>"",O29,100),0),IF(I29<>"",IF(P29<>"",P29,100),0),IF(J29<>"",IF(Q29<>"",Q29,100),0),IF(K29<>"",IF(R29<>"",R29,100),0),IF(L29<>"",IF(S29<>"",S29,100),0),IF(M29<>"",IF(T29<>"",T29,100),0)) -> 100 | H29: 5002 | I29: 1002 | N29: =SUM(O29:T29) -> 100 | O29: 70 | P29: 30 | U29: 70 | V29: 30
A30: 2003 | B30: 命运峰-第3层 | C30: 60;60 | D30: 5003;1003 | E30: 70;30 | G30: 100 | H30: 5003 | I30: 1003 | N30: 100 | O30: 70 | P30: 30 | U30: 70 | V30: 30
A31: 2004 | B31: 命运峰-第4层 | C31: 70;70 | D31: 5004;1004 | E31: 70;30 | G31: 100 | H31: 5004 | I31: 1004 | N31: 100 | O31: 70 | P31: 30 | U31: 70 | V31: 30
A32: 2005 | B32: 命运峰-第5层 | C32: 80;80 | D32: 5005;1005 | E32: 70;30 | G32: 100 | H32: 5005 | I32: 1005 | N32: 100 | O32: 70 | P32: 30 | U32: 70 | V32: 30
A33: 2006 | B33: 命运峰-第6层 | C33: 90 | D33: 5001;1001 | E33: 70;30 | G33: 100 | H33: 5001 | I33: 1001 | N33: 100 | O33: 70 | P33: 30 | U33: 70 | V33: 30
A34: 2007 | B34: 命运峰-第7层 | C34: 100 | D34: 5002;1002 | E34: 70;30 | G34: 100 | H34: 5002 | I34: 1002 | N34: 100 | O34: 70 | P34: 30 | U34: 70 | V34: 30
A35: 2008 | B35: 命运峰-第8层 | C35: 110 | D35: 5003;1003 | E35: 70;30 | G35: 100 | H35: 5003 | I35: 1003 | N35: 100 | O35: 70 | P35: 30 | U35: 70 | V35: 30
A36: 2009 | B36: 命运峰-第9层 | C36: 120 | D36: 5004;1004 | E36: 70;30 | G36: 100 | H36: 5004 | I36: 1004 | N36: 100 | O36: 70 | P36: 30 | U36: 70 | V36: 30
A37: 2010 | B37: 命运峰-第10层 | C37: 130 | D37: 5005;1005 | E37: 70;30 | G37: 100 | H37: 5005 | I37: 1005 | N37: 100 | O37: 70 | P37: 30 | U37: 70 | V37: 30
A38: 2011 | B38: 命运峰-第11层 | C38: 140 | D38: 5001;1001 | E38: 70;30 | G38: 100 | H38: 5001 | I38: 1001 | N38: 100 | O38: 70 | P38: 30 | U38: 70 | V38: 30
A39: 2012 | B39: 命运峰-第12层 | C39: 150 | D39: 5002;1002 | E39: 70;30 | G39: 100 | H39: 5002 | I39: 1002 | N39: 100 | O39: 70 | P39: 30 | U39: 70 | V39: 30
A40: 2013 | B40: 命运峰-第13层 | C40: 160 | D40: 5003;1003 | E40: 70;30 | G40: 100 | H40: 5003 | I40: 1003 | N40: 100 | O40: 70 | P40: 30 | U40: 70 | V40: 30
A41: 2014 | B41: 命运峰-第14层 | C41: 170 | D41: 5004;1004 | E41: 70;30 | G41: 100 | H41: 5004 | I41: 1004 | N41: 100 | O41: 70 | P41: 30 | U41: 70 | V41: 30
A42: 2015 | B42: 命运峰-第15层 | C42: 180 | D42: 5005;1005 | E42: 70;30 | G42: 100 | H42: 5005 | I42: 1005 | N42: 100 | O42: 70 | P42: 30 | U42: 70 | V42: 30
A43: 2016 | B43: 命运峰-第16层 | C43: 190 | D43: 5001;1001 | E43: 70;30 | G43: 100 | H43: 5001 | I43: 1001 | N43: 100 | O43: 70 | P43: 30 | U43: 70 | V43: 30
A44: 2017 | B44: 命运峰-第17层 | C44: 200 | D44: 5002;1002 | E44: 70;30 | G44: 100 | H44: 5002 | I44: 1002 | N44: 100 | O44: 70 | P44: 30 | U44: 70 | V44: 30
A45: 2018 | B45: 命运峰-第18层 | C45: 210 | D45: 5003;1003 | E45: 70;30 | G45: 100 | H45: 5003 | I45: 1003 | N45: 100 | O45: 70 | P45: 30 | U45: 70 | V45: 30
A46: 2019 | B46: 命运峰-第19层 | C46: 220 | D46: 5004;1004 | E46: 70;30 | G46: 100 | H46: 5004 | I46: 1004 | N46: 100 | O46: 70 | P46: 30 | U46: 70 | V46: 30
A47: 2020 | B47: 命运峰-第20层 | C47: 230 | D47: 5005;1005 | E47: 70;30 | G47: 100 | H47: 5005 | I47: 1005 | N47: 100 | O47: 70 | P47: 30 | U47: 70 | V47: 30

Sheet 强度验算
B1: 生存修正 | C1: 生命 | D1: 攻击修正 | E1: 秒伤 | F1: 怪物存活时间 | H1: 玩家打怪物 | K1: 怪物打玩家
H2: 阶段1 | I2: 阶段2 | K2: 阶段1 | L2: 阶段2
A3: 怪物1 | C3: 2000 | E3: 100 | F3: =C3/100 -> 20 | H3: =F3*E3 -> 2000
F5: 1.2 | H5: =SUM(H6:H7) -> 1800 | I5: =SUM(I6:I7) -> 600 | K5: =SUM(K6:K7) -> 1846.05 | L5: =SUM(L6:L7) -> 153.95 | M5: =SUM(K5:L5) -> 2000
A6: 主怪 | B6: 0.9 | C6: =C$3*$B6 -> 1800 | D6: 0.769 | E6: =E$3*$D6 -> 76.9 | F6: =C6/E$3 -> 18 | G6: =B6/D6 -> 1.170351105 | H6: =F6*E$3 -> 1800 | K6: =E6*F6 -> 1384.2
A7: 辅怪1 | B7: =C7/C$3 -> 0.3 | C7: =I7 -> 600 | D7: =E7/E$3 -> 0.2565833333 | E7: =(C$3-K6)/F7 -> 25.65833333 | F7: =F$3*F5 -> 24 | G7: =B7/D7 -> 1.169210783 | I7: =E$3*(F7-F6) -> 600 | K7: =E7*F6 -> 461.85 | L7: =C$3-K5 -> 153.95
F9: =F5 -> 1.2 | H9: =SUM(H10:H11) -> 1600 | I9: =SUM(I10:I11) -> 800 | K9: =SUM(K10:K11) -> 1714.133333 | L9: =SUM(L10:L11) -> 285.8666667 | M9: =SUM(K9:L9) -> 2000
A10: 主怪 | B10: 0.8 | C10: =C$3*$B10 -> 1600 | D10: 0.714 | E10: =E$3*$D10 -> 71.4 | F10: =C10/E$3 -> 16 | G10: =B10/D10 -> 1.120448179 | H10: =F10*E$3 -> 1600 | K10: =E10*F10 -> 1142.4
A11: 辅怪1 | B11: =C11/C$3 -> 0.4 | C11: =I11 -> 800 | D11: =E11/E$3 -> 0.3573333333 | E11: =(C$3-K10)/F11 -> 35.73333333 | F11: =F$3*F9 -> 24 | G11: =B11/D11 -> 1.119402985 | I11: =E$3*(F11-F10) -> 800 | K11: =E11*F10 -> 571.7333333 | L11: =C$3-K9 -> 285.8666667
F13: =F5 -> 1.2 | H13: =SUM(H14:H15) -> 1400 | I13: =SUM(I14:I15) -> 1000 | K13: =SUM(K14:K15) -> 1541.166667 | L13: =SUM(L14:L15) -> 458.8333333 | M13: =SUM(K13:L13) -> 2000
A14: 主怪 | B14: 0.7 | C14: =C$3*$B14 -> 1400 | D14: 0.642 | E14: =E$3*$D14 -> 64.2 | F14: =C14/E$3 -> 14 | G14: =B14/D14 -> 1.090342679 | H14: =F14*E$3 -> 1400 | K14: =E14*F14 -> 898.8
A15: 辅怪1 | B15: =C15/C$3 -> 0.5 | C15: =I15 -> 1000 | D15: =E15/E$3 -> 0.4588333333 | E15: =(C$3-K14)/F15 -> 45.88333333 | F15: =F$3*F13 -> 24 | G15: =B15/D15 -> 1.089720305 | I15: =E$3*(F15-F14) -> 1000 | K15: =E15*F14 -> 642.3666667 | L15: =C$3-K13 -> 458.8333333
F17: =F5 -> 1.2 | H17: =SUM(H18:H19) -> 1200 | I17: =SUM(I18:I19) -> 1200 | K17: =SUM(K18:K19) -> 1333.6 | L17: =SUM(L18:L19) -> 666.4 | M17: =SUM(K17:L17) -> 2000
A18: 主怪 | B18: 0.6 | C18: =C$3*$B18 -> 1200 | D18: 0.556 | E18: =E$3*$D18 -> 55.6 | F18: =C18/E$3 -> 12 | G18: =B18/D18 -> 1.079136691 | H18: =F18*E$3 -> 1200 | K18: =E18*F18 -> 667.2
A19: 辅怪1 | B19: =C19/C$3 -> 0.6 | C19: =I19 -> 1200 | D19: =E19/E$3 -> 0.5553333333 | E19: =(C$3-K18)/F19 -> 55.53333333 | F19: =F$3*F17 -> 24 | G19: =B19/D19 -> 1.080432173 | I19: =E$3*(F19-F18) -> 1200 | K19: =E19*F18 -> 666.4 | L19: =C$3-K17 -> 666.4
F24: 1.3 | H24: =SUM(H25:H26) -> 1800 | I24: =SUM(I25:I26) -> 800 | K24: =SUM(K25:K26) -> 1810.523077 | L24: =SUM(L25:L26) -> 189.4769231 | M24: =SUM(K24:L24) -> 2000
A25: 主怪 | B25: 0.9 | C25: =C$3*$B25 -> 1800 | D25: 0.769 | E25: =E$3*$D25 -> 76.9 | F25: =C25/E$3 -> 18 | G25: =B25/D25 -> 1.170351105 | H25: =F25*E$3 -> 1800 | K25: =E25*F25 -> 1384.2
A26: 辅怪1 | B26: =C26/C$3 -> 0.4 | C26: =I26 -> 800 | D26: =E26/E$3 -> 0.2368461538 | E26: =(C$3-K25)/F26 -> 23.68461538 | F26: =F$3*F24 -> 26 | G26: =B26/D26 -> 1.688860019 | I26: =E$3*(F26-F25) -> 800 | K26: =E26*F25 -> 426.3230769 | L26: =C$3-K24 -> 189.4769231
F28: =F24 -> 1.3 | H28: =SUM(H29:H30) -> 1600 | I28: =SUM(I29:I30) -> 1000 | K28: =SUM(K29:K30) -> 1670.153846 | L28: =SUM(L29:L30) -> 329.8461538 | M28: =SUM(K28:L28) -> 2000
A29: 主怪 | B29: 0.8 | C29: =C$3*$B29 -> 1600 | D29: 0.714 | E29: =E$3*$D29 -> 71.4 | F29: =C29/E$3 -> 16 | G29: =B29/D29 -> 1.120448179 | H29: =F29*E$3 -> 1600 | K29: =E29*F29 -> 1142.4
A30: 辅怪1 | B30: =C30/C$3 -> 0.5 | C30: =I30 -> 1000 | D30: =E30/E$3 -> 0.3298461538 | E30: =(C$3-K29)/F30 -> 32.98461538 | F30: =F$3*F28 -> 26 | G30: =B30/D30 -> 1.515858209 | I30: =E$3*(F30-F29) -> 1000 | K30: =E30*F29 -> 527.7538462 | L30: =C$3-K28 -> 329.8461538
F32: =F24 -> 1.3 | H32: =SUM(H33:H34) -> 1400 | I32: =SUM(I33:I34) -> 1200 | K32: =SUM(K33:K34) -> 1491.753846 | L32: =SUM(L33:L34) -> 508.2461538 | M32: =SUM(K32:L32) -> 2000
A33: 主怪 | B33: 0.7 | C33: =C$3*$B33 -> 1400 | D33: 0.642 | E33: =E$3*$D33 -> 64.2 | F33: =C33/E$3 -> 14 | G33: =B33/D33 -> 1.090342679 | H33: =F33*E$3 -> 1400 | K33: =E33*F33 -> 898.8
A34: 辅怪1 | B34: =C34/C$3 -> 0.6 | C34: =I34 -> 1200 | D34: =E34/E$3 -> 0.4235384615 | E34: =(C$3-K33)/F34 -> 42.35384615 | F34: =F$3*F32 -> 26 | G34: =B34/D34 -> 1.416636397 | I34: =E$3*(F34-F33) -> 1200 | K34: =E34*F33 -> 592.9538462 | L34: =C$3-K32 -> 508.2461538
F36: =F24 -> 1.3 | H36: =SUM(H37:H38) -> 1200 | I36: =SUM(I37:I38) -> 1400 | K36: =SUM(K37:K38) -> 1282.338462 | L36: =SUM(L37:L38) -> 717.6615385 | M36: =SUM(K36:L36) -> 2000
A37: 主怪 | B37: 0.6 | C37: =C$3*$B37 -> 1200 | D37: 0.556 | E37: =E$3*$D37 -> 55.6 | F37: =C37/E$3 -> 12 | G37: =B37/D37 -> 1.079136691 | H37: =F37*E$3 -> 1200 | K37: =E37*F37 -> 667.2
A38: 辅怪1 | B38: =C38/C$3 -> 0.7 | C38: =I38 -> 1400 | D38: =E38/E$3 -> 0.5126153846 | E38: =(C$3-K37)/F38 -> 51.26153846 | F38: =F$3*F36 -> 26 | G38: =B38/D38 -> 1.365546218 | I38: =E$3*(F38-F37) -> 1400 | K38: =E38*F37 -> 615.1384615 | L38: =C$3-K36 -> 717.6615385
